[Event "Titled Tuesday Blitz March 21 Late 2023"]
[White "Makhnev, Denis"]
[Black "Tanenbaum, Zachary"]
[WhiteFideId "13707647"]
[BlackFideId "2060850"]
[WhiteElo "2525"]
[BlackElo "2175"]
[Result "0-1"]
[Round "03"]
[TimeControl "180+2"]
[Date "2023.03.21"]
[WhiteClock "0:00:01"]
[BlackClock "0:00:14"]

1. d4 {[%clk 0:03:00]}  d5 {[%clk 0:03:00]} 2. c4 {[%clk 0:03:00]}  dxc4 {[%clk 0:03:01]} 3. Nf3 {[%clk 0:03:00]}  Nf6 {[%clk 0:03:00]} 4. e3 {[%clk 0:03:01]}  Bg4 {[%clk 0:03:01]} 5. Bxc4 {[%clk 0:02:59]}  e6 {[%clk 0:03:01]} 6. h3 {[%clk 0:02:57]}  Bh5 {[%clk 0:03:01]} 7. Nc3 {[%clk 0:02:56]}  Nbd7 {[%clk 0:02:59]} 8. g4 {[%clk 0:02:42]}  Bg6 {[%clk 0:02:59]} 9. Nh4 {[%clk 0:02:42]}  c6 {[%clk 0:02:45]} 10. Bb3 {[%clk 0:02:38]}  Bd6 {[%clk 0:02:39]} 11. g5 {[%clk 0:02:32]}  Nd5 {[%clk 0:02:39]} 12. Nxg6 {[%clk 0:02:32]}  hxg6 {[%clk 0:02:38]} 13. Ne4 {[%clk 0:02:32]}  Bb4+ {[%clk 0:02:29]} 14. Kf1 {[%clk 0:02:33]}  Qe7 {[%clk 0:02:15]} 15. a3 {[%clk 0:02:29]}  Ba5 {[%clk 0:02:15]} 16. Qg4 {[%clk 0:02:17]}  O-O-O {[%clk 0:02:08]} 17. Ba2 {[%clk 0:01:50]}  Kb8 {[%clk 0:02:05]} 18. b4 {[%clk 0:01:47]}  Bc7 {[%clk 0:02:01]} 19. Bb2 {[%clk 0:01:47]}  f5 {[%clk 0:01:46]} 20. gxf6 {[%clk 0:01:44]}  gxf6 {[%clk 0:01:46]} 21. Nc5 {[%clk 0:01:11]}  f5 {[%clk 0:01:37]} 22. Qe2 {[%clk 0:01:07]}  e5 {[%clk 0:01:31]} 23. Rc1 {[%clk 0:00:31]}  N7b6 {[%clk 0:00:50]} 24. b5 {[%clk 0:00:27]}  cxb5 {[%clk 0:00:49]} 25. Qxb5 {[%clk 0:00:27]}  f4 {[%clk 0:00:44]} 26. e4 {[%clk 0:00:24]}  Nf6 {[%clk 0:00:41]} 27. d5 {[%clk 0:00:23]}  Rc8 {[%clk 0:00:37]} 28. Ne6 {[%clk 0:00:12]}  Bd6 {[%clk 0:00:38]} 29. f3 {[%clk 0:00:07]}  Nh5 {[%clk 0:00:35]} 30. Kg2 {[%clk 0:00:06]}  Qh4 {[%clk 0:00:35]} 31. Qe2 {[%clk 0:00:03]}  Qg3+ {[%clk 0:00:35]} 32. Kf1 {[%clk 0:00:04]}  Na4 {[%clk 0:00:33]} 33. Rxc8+ {[%clk 0:00:03]}  Rxc8 {[%clk 0:00:33]} 34. Bb3 {[%clk 0:00:02]}  Nxb2 {[%clk 0:00:32]} 35. Rg1 {[%clk 0:00:02]}  Qxh3+ {[%clk 0:00:32]} 36. Qg2 {[%clk 0:00:02]}  Rc1+ {[%clk 0:00:28]} 37. Ke2 {[%clk 0:00:02]}  Qxg2+ {[%clk 0:00:20]} 38. Rxg2 {[%clk 0:00:03]}  Ng3+ {[%clk 0:00:20]} 39. Kd2 {[%clk 0:00:03]}  Rf1 {[%clk 0:00:20]} 40. Rh2 {[%clk 0:00:04]}  a5 {[%clk 0:00:19]} 41. Rh8+ {[%clk 0:00:04]}  Ka7 {[%clk 0:00:19]} 42. Rd8 {[%clk 0:00:04]}  Bxa3 {[%clk 0:00:18]} 43. d6 {[%clk 0:00:05]}  Rf2+ {[%clk 0:00:14]} 44. Kc3 {[%clk 0:00:01]}  Ne2+ {[%clk 0:00:14]} 0-1


[Site "https://www.chess.com"]

[Event "Titled Tuesday Blitz March 21 Late 2023"]
[White "Nazari, Arad"]
[Black "Bok, Benjamin"]
[WhiteFideId "12577324"]
[BlackFideId "1017063"]
[WhiteElo "2313"]
[BlackElo "2658"]
[Result "0-1"]
[Round "03"]
[TimeControl "180+2"]
[Date "2023.03.21"]
[WhiteClock "0:00:08"]
[BlackClock "0:00:34"]

1. e4 {[%clk 0:02:31]}  c5 {[%clk 0:02:59]} 2. Nf3 {[%clk 0:02:31]}  d6 {[%clk 0:03:00]} 3. Bb5+ {[%clk 0:02:32]}  Nd7 {[%clk 0:03:00]} 4. d4 {[%clk 0:02:32]}  cxd4 {[%clk 0:03:00]} 5. Qxd4 {[%clk 0:02:33]}  a6 {[%clk 0:03:00]} 6. Bxd7+ {[%clk 0:02:34]}  Bxd7 {[%clk 0:03:01]} 7. O-O {[%clk 0:02:34]}  Nf6 {[%clk 0:03:01]} 8. Rd1 {[%clk 0:02:27]}  Bg4 {[%clk 0:02:55]} 9. Qe3 {[%clk 0:02:11]}  Qc7 {[%clk 0:02:53]} 10. Nc3 {[%clk 0:01:59]}  e6 {[%clk 0:02:46]} 11. h3 {[%clk 0:01:57]}  Bh5 {[%clk 0:02:46]} 12. b3 {[%clk 0:01:41]}  Be7 {[%clk 0:02:44]} 13. Bb2 {[%clk 0:01:41]}  O-O {[%clk 0:02:44]} 14. Rac1 {[%clk 0:01:40]}  b5 {[%clk 0:02:42]} 15. Ne2 {[%clk 0:01:38]}  Rfd8 {[%clk 0:02:28]} 16. Nf4 {[%clk 0:01:33]}  Bxf3 {[%clk 0:02:18]} 17. Qxf3 {[%clk 0:01:34]}  Qb7 {[%clk 0:02:17]} 18. Bxf6 {[%clk 0:01:21]}  Bxf6 {[%clk 0:02:18]} 19. c4 {[%clk 0:01:21]}  h6 {[%clk 0:02:03]} 20. Nd3 {[%clk 0:01:03]}  Bg5 {[%clk 0:01:58]} 21. Rc2 {[%clk 0:00:59]}  Rac8 {[%clk 0:01:58]} 22. Nb2 {[%clk 0:00:51]}  Bf6 {[%clk 0:01:53]} 23. Qe2 {[%clk 0:00:36]}  Bxb2 {[%clk 0:01:43]} 24. Rxb2 {[%clk 0:00:37]}  bxc4 {[%clk 0:01:43]} 25. bxc4 {[%clk 0:00:37]}  Qc6 {[%clk 0:01:44]} 26. Rbd2 {[%clk 0:00:38]}  Qxc4 {[%clk 0:01:39]} 27. Qxc4 {[%clk 0:00:37]}  Rxc4 {[%clk 0:01:40]} 28. Rxd6 {[%clk 0:00:37]}  Rxd6 {[%clk 0:01:41]} 29. Rxd6 {[%clk 0:00:37]}  Ra4 {[%clk 0:01:42]} 30. e5 {[%clk 0:00:24]}  Rxa2 {[%clk 0:01:40]} 31. Rd7 {[%clk 0:00:24]}  g5 {[%clk 0:01:34]} 32. g4 {[%clk 0:00:22]}  a5 {[%clk 0:01:28]} 33. Ra7 {[%clk 0:00:22]}  a4 {[%clk 0:01:28]} 34. Kg2 {[%clk 0:00:22]}  a3 {[%clk 0:01:29]} 35. Kg3 {[%clk 0:00:21]}  Ra1 {[%clk 0:01:15]} 36. Kf3 {[%clk 0:00:20]}  Kf8 {[%clk 0:01:12]} 37. Ra8+ {[%clk 0:00:17]}  Ke7 {[%clk 0:01:02]} 38. Ra7+ {[%clk 0:00:17]}  Ke8 {[%clk 0:01:02]} 39. Ra8+ {[%clk 0:00:18]}  Kd7 {[%clk 0:01:03]} 40. Ra7+ {[%clk 0:00:18]}  Kc6 {[%clk 0:01:03]} 41. Rxf7 {[%clk 0:00:19]}  Rb1 {[%clk 0:00:53]} 42. Ra7 {[%clk 0:00:19]}  Rb3+ {[%clk 0:00:53]} 43. Ke4 {[%clk 0:00:17]}  Kb5 {[%clk 0:00:52]} 44. Rb7+ {[%clk 0:00:16]}  Kc4 {[%clk 0:00:50]} 45. Ra7 {[%clk 0:00:15]}  Kb4 {[%clk 0:00:50]} 46. f3 {[%clk 0:00:11]}  Kc3 {[%clk 0:00:46]} 47. Ra6 {[%clk 0:00:08]}  Kb2 {[%clk 0:00:37]} 48. Rxe6 {[%clk 0:00:06]}  a2 {[%clk 0:00:37]} 49. Ra6 {[%clk 0:00:07]}  Ra3 {[%clk 0:00:38]} 50. Rb6+ {[%clk 0:00:08]}  Kc2 {[%clk 0:00:38]} 51. Rc6+ {[%clk 0:00:08]}  Kd2 {[%clk 0:00:38]} 52. Rd6+ {[%clk 0:00:08]}  Ke2 {[%clk 0:00:37]} 53. e6 {[%clk 0:00:08]}  a1=Q {[%clk 0:00:35]} 54. e7 {[%clk 0:00:08]}  Re3+ {[%clk 0:00:34]} 0-1


[Site "https://www.chess.com"]

[Event "Titled Tuesday Blitz March 21 Late 2023"]
[White "Postny, Evgeny"]
[Black "Martinez Alcantara, Jose Eduardo"]
[WhiteFideId "2804344"]
[BlackFideId "3805662"]
[WhiteElo "2509"]
[BlackElo "2712"]
[Result "1-0"]
[Round "03"]
[TimeControl "180+2"]
[Date "2023.03.21"]
[WhiteClock "0:00:07"]
[BlackClock "0:00:13"]

1. e4 {[%clk 0:02:56]}  c5 {[%clk 0:02:58]} 2. Nf3 {[%clk 0:02:56]}  d6 {[%clk 0:02:58]} 3. d4 {[%clk 0:02:56]}  cxd4 {[%clk 0:02:58]} 4. Nxd4 {[%clk 0:02:57]}  Nf6 {[%clk 0:02:58]} 5. Nc3 {[%clk 0:02:58]}  a6 {[%clk 0:02:59]} 6. Be2 {[%clk 0:02:57]}  e5 {[%clk 0:02:59]} 7. Nf3 {[%clk 0:02:58]}  Be7 {[%clk 0:02:58]} 8. O-O {[%clk 0:02:58]}  Qc7 {[%clk 0:02:58]} 9. Re1 {[%clk 0:02:57]}  h6 {[%clk 0:02:52]} 10. h3 {[%clk 0:02:57]}  Be6 {[%clk 0:02:52]} 11. Bf1 {[%clk 0:02:55]}  Nbd7 {[%clk 0:02:51]} 12. a4 {[%clk 0:02:47]}  Rc8 {[%clk 0:02:46]} 13. a5 {[%clk 0:02:46]}  O-O {[%clk 0:02:41]} 14. Be3 {[%clk 0:02:40]}  Rfd8 {[%clk 0:02:32]} 15. Nd2 {[%clk 0:02:23]}  Qc6 {[%clk 0:02:27]} 16. Rc1 {[%clk 0:02:04]}  d5 {[%clk 0:02:23]} 17. exd5 {[%clk 0:02:03]}  Nxd5 {[%clk 0:02:24]} 18. Nxd5 {[%clk 0:01:59]}  Bxd5 {[%clk 0:02:25]} 19. c4 {[%clk 0:01:45]}  Be6 {[%clk 0:02:24]} 20. Qf3 {[%clk 0:01:39]}  Qxf3 {[%clk 0:02:21]} 21. Nxf3 {[%clk 0:01:40]}  Bb4 {[%clk 0:02:21]} 22. Bd2 {[%clk 0:01:35]}  Bxd2 {[%clk 0:02:05]} 23. Nxd2 {[%clk 0:01:36]}  Nc5 {[%clk 0:02:05]} 24. Nf3 {[%clk 0:01:24]}  e4 {[%clk 0:01:43]} 25. Ne5 {[%clk 0:01:24]}  Nd3 {[%clk 0:01:09]} 26. Bxd3 {[%clk 0:01:16]}  exd3 {[%clk 0:01:10]} 27. Red1 {[%clk 0:01:16]}  f6 {[%clk 0:00:58]} 28. Nxd3 {[%clk 0:01:14]}  Rxc4 {[%clk 0:00:59]} 29. Ne1 {[%clk 0:01:02]}  Rxd1 {[%clk 0:00:51]} 30. Rxd1 {[%clk 0:01:03]}  Ra4 {[%clk 0:00:47]} 31. Nd3 {[%clk 0:00:49]}  Rd4 {[%clk 0:00:30]} 32. Re1 {[%clk 0:00:47]}  Bd5 {[%clk 0:00:27]} 33. Nc5 {[%clk 0:00:44]}  Rb4 {[%clk 0:00:27]} 34. Nd3 {[%clk 0:00:30]}  Rb5 {[%clk 0:00:25]} 35. Nf4 {[%clk 0:00:27]}  Bc6 {[%clk 0:00:23]} 36. Re7 {[%clk 0:00:25]}  Kf8 {[%clk 0:00:12]} 37. Ng6+ {[%clk 0:00:25]}  Kg8 {[%clk 0:00:12]} 38. Nf4 {[%clk 0:00:26]}  g5 {[%clk 0:00:12]} 39. Nh5 {[%clk 0:00:25]}  Kf8 {[%clk 0:00:13]} 40. Rh7 {[%clk 0:00:23]}  Rxa5 {[%clk 0:00:12]} 41. Nxf6 {[%clk 0:00:23]}  Ra1+ {[%clk 0:00:13]} 42. Kh2 {[%clk 0:00:23]}  Ra2 {[%clk 0:00:14]} 43. Rxh6 {[%clk 0:00:09]}  Kg7 {[%clk 0:00:14]} 44. Ng4 {[%clk 0:00:09]}  Rxb2 {[%clk 0:00:14]} 45. Re6 {[%clk 0:00:08]}  a5 {[%clk 0:00:14]} 46. Ne5 {[%clk 0:00:08]}  Bd5 {[%clk 0:00:08]} 47. Rd6 {[%clk 0:00:08]}  Bg8 {[%clk 0:00:05]} 48. Rg6+ {[%clk 0:00:06]}  Kf8 {[%clk 0:00:05]} 49. Rxg5 {[%clk 0:00:06]}  a4 {[%clk 0:00:04]} 50. Nd7+ {[%clk 0:00:07]}  Ke7 {[%clk 0:00:04]} 51. Nc5 {[%clk 0:00:04]}  a3 {[%clk 0:00:01]} 52. Rxg8 {[%clk 0:00:04]}  a2 {[%clk 0:00:02]} 53. Ra8 {[%clk 0:00:04]}  b5 {[%clk 0:00:02]} 54. Nd3 {[%clk 0:00:04]}  Rb3 {[%clk 0:00:01]} 55. Nc1 {[%clk 0:00:03]}  Rb2 {[%clk 0:00:02]} 56. Nxa2 {[%clk 0:00:04]}  Rxf2 {[%clk 0:00:02]} 57. Kg3 {[%clk 0:00:04]}  Rb2 {[%clk 0:00:02]} 58. Kg4 {[%clk 0:00:01]}  Kf6 {[%clk 0:00:03]} 59. g3 {[%clk 0:00:01]}  Rb3 {[%clk 0:00:04]} 60. Ra6+ {[%clk 0:00:02]}  Ke5 {[%clk 0:00:04]} 61. Kh4 {[%clk 0:00:02]}  Rb2 {[%clk 0:00:05]} 62. g4 {[%clk 0:00:02]}  Kf4 {[%clk 0:00:05]} 63. Ra5 {[%clk 0:00:03]}  Rb3 {[%clk 0:00:05]} 64. Ra8 {[%clk 0:00:02]}  Ke5 {[%clk 0:00:05]} 65. Re8+ {[%clk 0:00:02]}  Kf6 {[%clk 0:00:05]} 66. Nc1 {[%clk 0:00:03]}  Rb2 {[%clk 0:00:05]} 67. Nd3 {[%clk 0:00:03]}  Rd2 {[%clk 0:00:06]} 68. Nf4 {[%clk 0:00:03]}  Kf7 {[%clk 0:00:07]} 69. Re5 {[%clk 0:00:03]}  Rb2 {[%clk 0:00:08]} 70. Rf5+ {[%clk 0:00:04]}  Ke7 {[%clk 0:00:08]} 71. Nd5+ {[%clk 0:00:05]}  Ke6 {[%clk 0:00:08]} 72. Kg5 {[%clk 0:00:05]}  b4 {[%clk 0:00:08]} 73. Nf4+ {[%clk 0:00:06]}  Ke7 {[%clk 0:00:08]} 74. Rb5 {[%clk 0:00:06]}  b3 {[%clk 0:00:08]} 75. h4 {[%clk 0:00:05]}  Rb1 {[%clk 0:00:08]} 76. h5 {[%clk 0:00:05]}  Kd7 {[%clk 0:00:09]} 77. h6 {[%clk 0:00:05]}  Kc6 {[%clk 0:00:09]} 78. Rb8 {[%clk 0:00:05]}  b2 {[%clk 0:00:10]} 79. Nd3 {[%clk 0:00:04]}  Kc7 {[%clk 0:00:09]} 80. Rxb2 {[%clk 0:00:03]}  Rh1 {[%clk 0:00:10]} 81. Rc2+ {[%clk 0:00:03]}  Kd7 {[%clk 0:00:10]} 82. Rf2 {[%clk 0:00:04]}  Ke7 {[%clk 0:00:11]} 83. Ne5 {[%clk 0:00:04]}  Ke6 {[%clk 0:00:11]} 84. Ng6 {[%clk 0:00:05]}  Rh2 {[%clk 0:00:11]} 85. Nh4 {[%clk 0:00:05]}  Rxf2 {[%clk 0:00:12]} 86. h7 {[%clk 0:00:05]}  Rf8 {[%clk 0:00:12]} 87. Ng6 {[%clk 0:00:06]}  Re8 {[%clk 0:00:10]} 88. h8=Q {[%clk 0:00:06]}  Rxh8 {[%clk 0:00:10]} 89. Nxh8 {[%clk 0:00:06]}  Ke7 {[%clk 0:00:11]} 90. Kg6 {[%clk 0:00:06]}  Kf8 {[%clk 0:00:12]} 91. Kh7 {[%clk 0:00:05]}  Ke7 {[%clk 0:00:12]} 92. g5 {[%clk 0:00:06]}  Ke8 {[%clk 0:00:13]} 93. g6 {[%clk 0:00:06]}  Ke7 {[%clk 0:00:13]} 94. g7 {[%clk 0:00:07]} 1-0


[Site "https://www.chess.com"]

[Event "Titled Tuesday Blitz March 21 Late 2023"]
[White "Bashirli, Nail"]
[Black "Terry, Renato"]
[WhiteFideId "13406809"]
[BlackFideId "3803457"]
[WhiteElo "2338"]
[BlackElo "2579"]
[Result "0-1"]
[Round "03"]
[TimeControl "180+2"]
[Date "2023.03.21"]
[WhiteClock "0:00:29"]
[BlackClock "0:01:19"]

1. e4 {[%clk 0:03:00]}  e6 {[%clk 0:02:59]} 2. d4 {[%clk 0:02:58]}  d5 {[%clk 0:03:00]} 3. Nd2 {[%clk 0:02:58]}  Be7 {[%clk 0:03:00]} 4. Bd3 {[%clk 0:02:55]}  c5 {[%clk 0:03:00]} 5. dxc5 {[%clk 0:02:54]}  Nf6 {[%clk 0:03:00]} 6. Qe2 {[%clk 0:02:53]}  O-O {[%clk 0:02:59]} 7. Ngf3 {[%clk 0:02:53]}  a5 {[%clk 0:02:55]} 8. O-O {[%clk 0:02:53]}  Na6 {[%clk 0:02:54]} 9. e5 {[%clk 0:02:33]}  Nd7 {[%clk 0:02:54]} 10. c4 {[%clk 0:02:34]}  Ndxc5 {[%clk 0:02:50]} 11. Bb1 {[%clk 0:02:31]}  Nb4 {[%clk 0:02:44]} 12. Rd1 {[%clk 0:02:29]}  b6 {[%clk 0:02:40]} 13. a3 {[%clk 0:02:27]}  Nc6 {[%clk 0:02:40]} 14. cxd5 {[%clk 0:02:23]}  exd5 {[%clk 0:02:40]} 15. Nf1 {[%clk 0:02:21]}  Be6 {[%clk 0:02:32]} 16. Ne3 {[%clk 0:02:12]}  g6 {[%clk 0:02:22]} 17. Nc2 {[%clk 0:01:51]}  Nb3 {[%clk 0:02:20]} 18. Bh6 {[%clk 0:01:41]}  Re8 {[%clk 0:02:15]} 19. Ra2 {[%clk 0:01:38]}  d4 {[%clk 0:02:15]} 20. Qe4 {[%clk 0:01:28]}  Qd5 {[%clk 0:02:11]} 21. Qf4 {[%clk 0:01:27]}  Rad8 {[%clk 0:02:01]} 22. Ne3 {[%clk 0:01:13]}  dxe3 {[%clk 0:01:22]} 23. Rxd5 {[%clk 0:01:14]}  Rxd5 {[%clk 0:01:22]} 24. Bc2 {[%clk 0:00:42]}  e2 {[%clk 0:01:18]} 25. h4 {[%clk 0:00:30]}  Rd1+ {[%clk 0:01:18]} 26. Kh2 {[%clk 0:00:29]}  Nbd4 {[%clk 0:01:19]} 0-1


[Site "https://www.chess.com"]

[Event "Titled Tuesday Blitz March 21 Late 2023"]
[White "Bilych, Olexiy"]
[Black "Grigoriants, Sergey"]
[WhiteFideId "14156504"]
[BlackFideId "4130804"]
[WhiteElo "2320"]
[BlackElo "2502"]
[Result "1/2-1/2"]
[Round "03"]
[TimeControl "180+2"]
[Date "2023.03.21"]
[WhiteClock "0:00:25"]
[BlackClock "0:00:32"]

1. d4 {[%clk 0:03:00]}  d5 {[%clk 0:02:56]} 2. c4 {[%clk 0:03:01]}  c6 {[%clk 0:02:56]} 3. Nf3 {[%clk 0:03:00]}  Nf6 {[%clk 0:02:57]} 4. Nc3 {[%clk 0:03:01]}  dxc4 {[%clk 0:02:57]} 5. a4 {[%clk 0:03:00]}  a5 {[%clk 0:02:57]} 6. e4 {[%clk 0:02:54]}  Bg4 {[%clk 0:02:56]} 7. Bxc4 {[%clk 0:02:54]}  e6 {[%clk 0:02:57]} 8. Be3 {[%clk 0:02:44]}  Bb4 {[%clk 0:02:56]} 9. Qc2 {[%clk 0:02:35]}  Nbd7 {[%clk 0:02:56]} 10. Be2 {[%clk 0:02:25]}  Bh5 {[%clk 0:02:52]} 11. O-O {[%clk 0:02:16]}  O-O {[%clk 0:02:52]} 12. Rad1 {[%clk 0:01:59]}  Qe7 {[%clk 0:02:48]} 13. h3 {[%clk 0:01:55]}  h6 {[%clk 0:02:32]} 14. Na2 {[%clk 0:01:12]}  Bg6 {[%clk 0:02:21]} 15. Nxb4 {[%clk 0:01:10]}  axb4 {[%clk 0:02:21]} 16. Bd3 {[%clk 0:01:10]}  b3 {[%clk 0:02:19]} 17. Qxb3 {[%clk 0:01:05]}  Bxe4 {[%clk 0:02:19]} 18. Bxe4 {[%clk 0:01:04]}  Nxe4 {[%clk 0:02:19]} 19. Qxb7 {[%clk 0:01:05]}  Nd6 {[%clk 0:02:13]} 20. Qb3 {[%clk 0:01:02]}  Nf5 {[%clk 0:02:09]} 21. Rc1 {[%clk 0:00:59]}  Rfb8 {[%clk 0:02:01]} 22. Qc2 {[%clk 0:00:58]}  Nf6 {[%clk 0:02:02]} 23. Ne5 {[%clk 0:00:56]}  Qd6 {[%clk 0:01:54]} 24. Nxc6 {[%clk 0:00:51]}  Rc8 {[%clk 0:01:54]} 25. b4 {[%clk 0:00:51]}  Nd5 {[%clk 0:01:53]} 26. Qc5 {[%clk 0:00:35]}  Rxa4 {[%clk 0:01:36]} 27. b5 {[%clk 0:00:32]}  Ra2 {[%clk 0:01:28]} 28. b6 {[%clk 0:00:28]}  Qxc5 {[%clk 0:01:18]} 29. dxc5 {[%clk 0:00:29]}  Rxc6 {[%clk 0:00:54]} 30. b7 {[%clk 0:00:29]}  Rb2 {[%clk 0:00:55]} 31. Rb1 {[%clk 0:00:30]}  Rxb7 {[%clk 0:00:55]} 32. Rxb7 {[%clk 0:00:30]}  Ndxe3 {[%clk 0:00:33]} 33. fxe3 {[%clk 0:00:31]}  Rxc5 {[%clk 0:00:33]} 34. e4 {[%clk 0:00:30]}  Nd6 {[%clk 0:00:34]} 35. Rd7 {[%clk 0:00:30]}  Nxe4 {[%clk 0:00:34]} 36. Rfxf7 {[%clk 0:00:29]}  Rg5 {[%clk 0:00:34]} 37. Rfe7 {[%clk 0:00:27]}  Kh7 {[%clk 0:00:32]} 38. Rxe6 {[%clk 0:00:25]}  Nc5 {[%clk 0:00:32]} 39. Red6 {[%clk 0:00:24]}  Nxd7 {[%clk 0:00:32]} 40. Rxd7 {[%clk 0:00:25]} 1/2-1/2


[Site "https://www.chess.com"]

[Event "Titled Tuesday Blitz March 21 Late 2023"]
[White "Gholami Orimi, Mahdi"]
[Black "Fernandez Guillen, Ernesto J."]
[WhiteFideId "12558486"]
[BlackFideId "3512428"]
[WhiteElo "2363"]
[BlackElo "2423"]
[Result "1-0"]
[Round "03"]
[TimeControl "180+2"]
[Date "2023.03.21"]
[WhiteClock "0:00:18"]
[BlackClock "0:00:07"]

1. d4 {[%clk 0:02:56]}  Nf6 {[%clk 0:02:50]} 2. c4 {[%clk 0:02:56]}  g6 {[%clk 0:02:51]} 3. Nc3 {[%clk 0:02:57]}  d5 {[%clk 0:02:51]} 4. Bg5 {[%clk 0:02:55]}  dxc4 {[%clk 0:02:50]} 5. e3 {[%clk 0:02:49]}  Bg7 {[%clk 0:02:50]} 6. Bxc4 {[%clk 0:02:49]}  O-O {[%clk 0:02:51]} 7. Nf3 {[%clk 0:02:45]}  a6 {[%clk 0:02:51]} 8. O-O {[%clk 0:02:44]}  b5 {[%clk 0:02:52]} 9. Be2 {[%clk 0:02:45]}  Bb7 {[%clk 0:02:52]} 10. Rc1 {[%clk 0:02:44]}  Nbd7 {[%clk 0:02:52]} 11. b4 {[%clk 0:02:41]}  Nd5 {[%clk 0:02:47]} 12. Nxd5 {[%clk 0:02:41]}  Bxd5 {[%clk 0:02:47]} 13. a3 {[%clk 0:02:40]}  h6 {[%clk 0:02:43]} 14. Bh4 {[%clk 0:02:39]}  g5 {[%clk 0:02:42]} 15. Bg3 {[%clk 0:02:39]}  c6 {[%clk 0:02:42]} 16. Nd2 {[%clk 0:02:38]}  f5 {[%clk 0:02:41]} 17. Qc2 {[%clk 0:02:12]}  a5 {[%clk 0:02:14]} 18. Bf3 {[%clk 0:01:57]}  axb4 {[%clk 0:02:14]} 19. axb4 {[%clk 0:01:58]}  Nb6 {[%clk 0:02:01]} 20. Bxd5+ {[%clk 0:01:56]}  cxd5 {[%clk 0:02:02]} 21. Bc7 {[%clk 0:01:56]}  Rc8 {[%clk 0:01:50]} 22. Bxd8 {[%clk 0:01:50]}  Rxc2 {[%clk 0:01:51]} 23. Rxc2 {[%clk 0:01:47]}  Rxd8 {[%clk 0:01:51]} 24. Rc5 {[%clk 0:01:41]}  Nc4 {[%clk 0:01:49]} 25. Nb3 {[%clk 0:01:40]}  Nd6 {[%clk 0:01:11]} 26. Rxd5 {[%clk 0:01:38]}  Ra8 {[%clk 0:01:12]} 27. Na5 {[%clk 0:01:34]}  Rc8 {[%clk 0:01:11]} 28. Rc5 {[%clk 0:01:35]}  Ra8 {[%clk 0:01:11]} 29. Rfc1 {[%clk 0:01:34]}  Kf7 {[%clk 0:01:10]} 30. Rc7 {[%clk 0:01:27]}  f4 {[%clk 0:01:07]} 31. exf4 {[%clk 0:01:18]}  gxf4 {[%clk 0:01:06]} 32. Re1 {[%clk 0:01:18]}  Bf6 {[%clk 0:01:06]} 33. Nc6 {[%clk 0:01:19]}  Nf5 {[%clk 0:01:06]} 34. d5 {[%clk 0:01:18]}  Kg6 {[%clk 0:01:02]} 35. h3 {[%clk 0:01:04]}  Ra2 {[%clk 0:00:54]} 36. Ne5+ {[%clk 0:01:04]}  Kg5 {[%clk 0:00:45]} 37. Rc5 {[%clk 0:00:53]}  Nd6 {[%clk 0:00:40]} 38. Rc7 {[%clk 0:00:43]}  h5 {[%clk 0:00:39]} 39. Rd7 {[%clk 0:00:37]}  Nf5 {[%clk 0:00:37]} 40. Nf3+ {[%clk 0:00:35]}  Kg6 {[%clk 0:00:37]} 41. Rd8 {[%clk 0:00:36]}  Rb2 {[%clk 0:00:32]} 42. Re4 {[%clk 0:00:30]}  Rb1+ {[%clk 0:00:14]} 43. Kh2 {[%clk 0:00:30]}  Rf1 {[%clk 0:00:13]} 44. Rxf4 {[%clk 0:00:29]}  Rxf2 {[%clk 0:00:13]} 45. Rg8+ {[%clk 0:00:21]}  Kf7 {[%clk 0:00:11]} 46. Rg5 {[%clk 0:00:22]}  Bxg5 {[%clk 0:00:04]} 47. Nxg5+ {[%clk 0:00:22]}  Kg6 {[%clk 0:00:04]} 48. Rxf2 {[%clk 0:00:22]}  Kxg5 {[%clk 0:00:05]} 49. Re2 {[%clk 0:00:19]}  h4 {[%clk 0:00:06]} 50. Re4 {[%clk 0:00:18]}  Kf6 {[%clk 0:00:06]} 51. Kg1 {[%clk 0:00:17]}  Nd6 {[%clk 0:00:05]} 52. Rxh4 {[%clk 0:00:17]}  Ke5 {[%clk 0:00:06]} 53. Rh5+ {[%clk 0:00:18]}  Kd4 {[%clk 0:00:06]} 54. g4 {[%clk 0:00:18]}  Ne4 {[%clk 0:00:06]} 55. Rh7 {[%clk 0:00:18]}  Kxd5 {[%clk 0:00:07]} 56. Rxe7 {[%clk 0:00:18]} 1-0


[Site "https://www.chess.com"]

[Event "Titled Tuesday Blitz March 21 Late 2023"]
[White "Maatman, Nick"]
[Black "Kramnik, Vladimir"]
[WhiteFideId "1040391"]
[BlackFideId "4101588"]
[WhiteElo "2707"]
[BlackElo "2712"]
[Result "0-1"]
[Round "03"]
[TimeControl "180+2"]
[Date "2023.03.21"]
[WhiteClock "0:00:13"]
[BlackClock "0:01:05"]

1. d4 {[%clk 0:02:57]}  Nf6 {[%clk 0:02:58]} 2. c4 {[%clk 0:02:58]}  e6 {[%clk 0:02:58]} 3. g3 {[%clk 0:02:57]}  Bb4+ {[%clk 0:02:57]} 4. Nd2 {[%clk 0:02:56]}  c5 {[%clk 0:02:56]} 5. Nf3 {[%clk 0:02:49]}  cxd4 {[%clk 0:02:54]} 6. Nxd4 {[%clk 0:02:50]}  Nc6 {[%clk 0:02:50]} 7. Nc2 {[%clk 0:02:45]}  Be7 {[%clk 0:02:47]} 8. Bg2 {[%clk 0:02:45]}  O-O {[%clk 0:02:47]} 9. O-O {[%clk 0:02:45]}  d5 {[%clk 0:02:43]} 10. cxd5 {[%clk 0:02:42]}  Nxd5 {[%clk 0:02:42]} 11. Ne4 {[%clk 0:02:27]}  b6 {[%clk 0:02:38]} 12. Ne3 {[%clk 0:02:25]}  Bb7 {[%clk 0:02:35]} 13. Nxd5 {[%clk 0:02:24]}  exd5 {[%clk 0:02:35]} 14. Nc3 {[%clk 0:02:22]}  d4 {[%clk 0:02:35]} 15. Nd5 {[%clk 0:02:17]}  Re8 {[%clk 0:02:27]} 16. Bf4 {[%clk 0:02:04]}  Rc8 {[%clk 0:02:25]} 17. Nxe7+ {[%clk 0:01:51]}  Qxe7 {[%clk 0:02:23]} 18. Re1 {[%clk 0:01:43]}  g5 {[%clk 0:02:09]} 19. Bd2 {[%clk 0:01:41]}  h6 {[%clk 0:02:04]} 20. Rc1 {[%clk 0:01:39]}  Ne5 {[%clk 0:02:04]} 21. Bxb7 {[%clk 0:01:24]}  Qxb7 {[%clk 0:02:03]} 22. Qa4 {[%clk 0:01:07]}  Rcd8 {[%clk 0:01:51]} 23. f4 {[%clk 0:00:56]}  gxf4 {[%clk 0:01:47]} 24. Bxf4 {[%clk 0:00:51]}  b5 {[%clk 0:01:41]} 25. Qa5 {[%clk 0:00:40]}  d3 {[%clk 0:01:32]} 26. Rc7 {[%clk 0:00:38]}  Qe4 {[%clk 0:01:21]} 27. Qxb5 {[%clk 0:00:28]}  Nf3+ {[%clk 0:01:15]} 28. exf3 {[%clk 0:00:18]}  Qxe1+ {[%clk 0:01:14]} 29. Kg2 {[%clk 0:00:19]}  Qe2+ {[%clk 0:01:10]} 30. Kh3 {[%clk 0:00:19]}  d2 {[%clk 0:01:08]} 31. Bxh6 {[%clk 0:00:13]}  Qxb5 {[%clk 0:01:05]} 0-1


[Site "https://www.chess.com"]